bitfinex-derivatives/quotes_SOLF0:USTF0_20250428
["timestamp","ask_amount","ask_price","bid_price","bid_amount"]
[1745852332850,6.7911,147.19,147.17,6.7917]
[1745852333053,51.76099051,147.22,147.15,25.86]
[1745852333445,51.76099051,147.22,147.17,6.7915]
[1745852334150,6.7909,147.19,147.17,6.7915]
[1745852335449,6.7914,147.18,147.16,6.792]
[1745852335653,6.7914,147.18,147.15,25.86]
[1745852336358,6.7914,147.18,147.16,6.792]
[1745852338154,6.7918,147.17,147.15,32.6525]
[1745852338553,16.27206806,147.18,147.13,25.86]
[1745852338858,16.27206806,147.18,147.13,32.6532]
[1745852339457,16.27206806,147.18,147.14,6.7931]
[1745852339863,6.7918,147.17,147.15,6.7926]
[1745852340057,16.27206806,147.18,147.13,25.86]
[1745852341465,6.792,147.17,147.14,6.7929]
[1745852342160,6.7923,147.16,147.14,6.7929]
[1745852343159,6.7923,147.16,147.13,25.86]
[1745852343160,16.27206806,147.16,147.08,25.86]
[1745852343356,16.27206806,147.14,147.08,25.86]
[1745852343559,6.7943,147.12,147.1,6.7949]
[1745852343760,6.7943,147.12,147.08,25.86]
[1745852343957,16.27206806,147.14,147.08,25.86]
[1745852344161,42.13206806,147.18,147.09,16.27206806]
[1745852345363,6.7918,147.17,147.09,16.27206806]
[1745852345564,25.86,147.18,147.08,51.89827469]
[1745852345866,32.6515,147.18,147.15,6.7923]
[1745852346063,6.7915,147.18,147.15,6.7923]
[1745852346265,26.03827469,147.2,147.13,4.2078]
[1745852346463,6.7915,147.18,147.13,6.3334]
[1745852346668,26.03827469,147.2,147.13,6.3334]
[1745852347161,6.7913,147.19,147.15,6.7926]
[1745852347365,6.7913,147.19,147.13,6.3334]
[1745852347566,26.03827469,147.2,147.13,6.3334]
[1745852347860,32.82887469,147.2,147.17,6.7915]
[1745852348059,26.03827469,147.2,147.17,6.7915]
[1745852348365,6.791,147.19,147.16,6.792]
[1745852348665,6.791,147.19,147.13,6.3334]
[1745852349066,6.791,147.19,147.16,6.792]
[1745852349768,26.03827469,147.2,147.16,6.792]
[1745852350168,26.03827469,147.2,147.13,6.3334]
[1745852350869,6.7921,147.17,147.14,6.7931]
[1745852351267,6.7915,147.18,147.15,6.7924]
[1745852351770,6.7909,147.19,147.13,6.3334]
[1745852352271,6.7909,147.19,147.16,6.7919]
[1745852352863,391.03827469,147.27,147.16,25.84]
[1745852353067,416.87827469,147.27,147.16,25.84]
[1745852353268,416.87827469,147.27,147.2,6.7901]
[1745852353461,416.87827469,147.27,147.16,25.84]
[1745852353659,25.84,147.27,147.17,26.03827469]
[1745852353862,6.7882,147.25,147.22,6.7894]
[1745852354372,6.7879,147.26,147.23,6.789]
[1745852354871,6.7881,147.25,147.22,6.7893]
[1745852355373,25.84,147.27,147.2,25.84]
[1745852355565,51.87827469,147.27,147.2,32.6302]
[1745852356469,51.87827469,147.27,147.2,25.84]
[1745852357473,6.7888,147.24,147.2,25.84]
[1745852357975,25.84,147.27,147.2,25.84]
[1745852358178,25.84,147.27,147.24,6.7883]
[1745852358374,51.87827469,147.3,147.21,4.0095]
[1745852358571,6.7869,147.28,147.22,2.0318]
[1745852358776,25.84,147.3,147.22,2.0318]
[1745852359375,6.7865,147.29,147.25,6.7877]
[1745852359876,51.87827469,147.33,147.26,6.7876]
[1745852360079,51.87827469,147.33,147.24,25.84]
[1745852360678,26.03827469,147.3,147.24,25.84]
[1745852360979,25.84,147.29,147.22,8.8209]
[1745852361180,25.84,147.29,147.22,2.0318]
[1745852361875,25.84,147.29,147.21,29.8495]
[1745852362273,26.03827469,147.27,147.21,29.8495]
[1745852363079,6.7882,147.25,147.22,6.7893]
[1745852363279,26.03827469,147.27,147.21,29.8495]
[1745852363779,6.7885,147.24,147.21,36.6391]
[1745852364079,26.03827469,147.27,147.21,29.8495]
[1745852364280,6.7873,147.27,147.24,6.7885]
[1745852364780,25.84,147.29,147.21,29.8495]
[1745852365080,6.787,147.28,147.25,6.7878]
[1745852365381,6.7875,147.27,147.24,6.7883]
[1745852365575,26.03827469,147.3,147.21,29.8495]
[1745852366076,6.7873,147.27,147.21,29.8495]
[1745852366382,26.03827469,147.3,147.21,29.8495]
[1745852366777,6.787,147.28,147.25,6.7879]
[1745852366979,25.84,147.32,147.21,29.8495]
[1745852367379,6.786,147.3,147.27,6.7871]
[1745852367574,26.03827469,147.33,147.26,25.84]
[1745852368485,6.7856,147.31,147.28,6.7866]
[1745852369181,365.0,147.34,147.28,6.7866]
[1745852369583,6.7857,147.31,147.28,6.7866]
[1745852369786,365.0,147.34,147.27,10.7716]
[1745852369975,365.0,147.34,147.27,3.9846]
[1745852370284,6.7855,147.31,147.28,6.7864]
[1745852370578,365.0,147.34,147.27,3.9846]
[1745852370779,365.0,147.34,147.28,6.7865]
[1745852371182,6.7856,147.31,147.28,6.7865]
[1745852371582,6.7856,147.31,147.29,6.7862]
[1745852371783,365.0,147.34,147.27,3.9846]
[1745852372183,365.0,147.34,147.31,6.7853]
[1745852372386,365.0,147.34,147.27,3.9846]
[1745852372582,365.0,147.34,147.3,6.7855]
[1745852372783,6.7845,147.33,147.27,3.9846]
[1745852373183,25.82,147.38,147.27,3.9846]
[1745852373385,25.82,147.38,147.29,26.03827469]
[1745852373580,25.82,147.41,147.3,27.7768]
[1745852373888,6.7824,147.38,147.3,27.7768]
[1745852374278,6.7833,147.36,147.3,27.7768]
[1745852374589,26.03827469,147.39,147.3,27.7768]
[1745852374885,26.03827469,147.39,147.32,6.7845]
[1745852375084,26.03827469,147.39,147.3,27.7768]
[1745852375282,25.82,147.41,147.3,27.7768]
[1745852376184,6.7828,147.37,147.34,6.7837]
[1745852376887,6.7823,147.38,147.35,6.7834]
[1745852377287,6.7826,147.37,147.35,6.7834]
[1745852377586,6.7826,147.37,147.34,6.7837]
[1745852378082,6.7826,147.37,147.3,27.7768]
[1745852378888,6.7823,147.38,147.35,6.7834]
[1745852379092,25.82,147.41,147.3,27.7768]
[1745852379385,6.782,147.39,147.3,27.7768]
[1745852380383,6.7814,147.4,147.3,27.7768]
[1745852380690,25.82,147.41,147.3,27.7768]
[1745852381086,6.782,147.39,147.3,27.7768]
[1745852381387,25.82,147.41,147.3,27.7768]
[1745852381787,6.7827,147.37,147.33,6.7842]
[1745852381989,26.03827469,147.39,147.3,27.7768]
[1745852382387,26.03827469,147.39,147.32,6.7846]
[1745852382588,26.03827469,147.39,147.3,27.7768]
[1745852383384,6.7834,147.36,147.33,6.7843]
[1745852383590,26.03827469,147.39,147.3,27.7768]
[1745852384591,6.7842,147.34,147.31,6.7849]
[1745852384890,6.7842,147.34,147.29,25.8]
[1745852385190,26.03827469,147.39,147.29,25.8]
[1745852385487,6.7841,147.34,147.31,6.7851]
[1745852385989,6.7847,147.33,147.3,6.7856]
[1745852386691,6.7841,147.34,147.31,6.785]
[1745852387286,6.7841,147.34,147.32,6.7848]
[1745852387492,6.7841,147.34,147.29,25.8]
[1745852387791,6.7841,147.34,147.31,6.785]
[1745852388886,26.03827469,147.36,147.3,6.7855]
[1745852389288,6.7842,147.34,147.29,25.8]
[1745852389497,6.7842,147.34,147.31,6.7849]
[1745852389689,6.7842,147.34,147.29,25.8]
[1745852389994,6.7842,147.34,147.31,6.785]
[1745852390995,6.7836,147.35,147.32,6.7848]
[1745852391195,26.03827469,147.36,147.29,25.8]
[1745852391496,6.7843,147.34,147.31,6.785]
[1745852392096,26.03827469,147.36,147.29,25.8]
[1745852393291,26.03827469,147.33,147.24,488.62]
[1745852393496,51.83827469,147.33,147.25,25.8]
[1745852393992,6.786,147.3,147.27,6.7869]
[1745852394296,51.83827469,147.33,147.25,25.8]
[1745852394498,6.7866,147.29,147.27,6.7871]
[1745852394997,6.7861,147.3,147.27,6.7871]
[1745852395201,6.7861,147.3,147.28,6.7866]
[1745852395397,51.83827469,147.33,147.25,25.8]
[1745852395598,6.786,147.3,147.25,25.8]
[1745852396299,6.786,147.3,147.27,6.7868]
[1745852396596,6.7863,147.29,147.27,6.7868]
[1745852397300,51.83827469,147.33,147.26,6.7874]
[1745852397891,6.7866,147.29,147.26,6.7874]
[1745852399101,51.83827469,147.33,147.26,6.7874]
[1745852399599,6.7865,147.29,147.26,6.7874]
[1745852399802,6.7865,147.29,147.27,6.787]
[1745852400399,51.83827469,147.33,147.25,25.8]
[1745852401202,51.83827469,147.33,147.25,32.588]
[1745852401500,51.83827469,147.33,147.25,25.8]
[1745852401700,6.7872,147.27,147.25,32.588]
[1745852401993,25.8,147.33,147.25,25.8]
[1745852402196,6.7836,147.35,147.27,26.03827469]
[1745852402399,365.0,147.38,147.28,2.0032]
[1745852402598,25.8,147.39,147.29,25.82]
[1745852402800,6.7829,147.37,147.34,6.7835]
[1745852403000,25.8,147.39,147.3,4.1021]
[1745852403200,6.7828,147.37,147.3,4.1021]
[1745852403498,25.8,147.39,147.3,4.1021]
[1745852404298,6.7844,147.33,147.31,6.785]
[1745852405599,25.8,147.39,147.28,2.0032]
[1745852405600,25.8,147.35,147.28,2.0032]
[1745852406606,6.785,147.32,147.28,2.0032]
[1745852407007,25.8,147.35,147.26,518.2258]
[1745852407206,25.8,147.35,147.28,6.7864]
[1745852407504,25.8,147.35,147.26,518.2258]
[1745852407709,6.7856,147.31,147.26,518.2258]
[1745852408100,6.785,147.32,147.29,6.7858]
[1745852408407,25.8,147.35,147.26,518.2258]
[1745852408808,6.7855,147.31,147.26,518.2258]
[1745852409110,25.8,147.35,147.26,518.2258]
[1745852409308,6.786,147.3,147.28,6.7866]
[1745852409709,25.8,147.35,147.29,6.7861]
[1745852410007,25.8,147.35,147.26,544.26407469]
[1745852410204,25.8,147.38,147.26,544.26407469]
[1745852410606,25.8,147.38,147.29,26.03827469]
[1745852410800,25.8,147.38,147.3,27.8405]
[1745852411006,6.7828,147.37,147.34,6.7835]
[1745852411207,6.7828,147.37,147.3,27.8405]
[1745852411501,6.7832,147.36,147.33,6.784]
[1745852411705,25.8,147.41,147.3,27.8405]
[1745852412006,6.783,147.36,147.3,27.8405]
[1745852412208,25.8,147.41,147.3,27.8405]
[1745852412405,540.45827469,147.44,147.32,26.03827469]
[1745852412708,25.8,147.44,147.33,3.9885]
[1745852412912,25.8,147.44,147.34,25.8]
[1745852413104,6.7807,147.41,147.38,6.7818]
[1745852413303,6.7807,147.41,147.34,25.8]
[1745852413511,6.7804,147.42,147.39,6.7816]
[1745852414108,25.8,147.44,147.39,6.7816]
[1745852414413,6.7807,147.41,147.38,6.7819]
[1745852415216,6.7804,147.42,147.38,6.7819]
[1745852415405,25.8,147.44,147.38,6.7819]
[1745852415908,26.03827469,147.4,147.34,25.8]
[1745852416106,26.03827469,147.4,147.33,3.9885]
[1745852416306,51.81827469,147.4,147.33,36.5526]
[1745852416513,51.81827469,147.4,147.33,25.78]
[1745852416815,26.03827469,147.37,147.3,27.8205]
[1745852417815,26.03827469,147.37,147.31,6.7851]
[1745852417816,6.7835,147.35,147.31,6.7851]
[1745852418217,26.03827469,147.37,147.29,6.7859]
[1745852418418,25.78,147.36,147.29,6.7859]
[1745852419117,6.7849,147.32,147.28,36.6754]
[1745852419321,6.7849,147.32,147.28,29.8889]
[1745852419722,6.7849,147.32,147.29,6.7861]
[1745852421131,26.03827469,147.34,147.28,36.6754]
[1745852421428,26.03827469,147.34,147.28,29.8889]
[1745852421818,26.03827469,147.34,147.28,4.1089]
[1745852422429,6.7854,147.31,147.28,10.8953]
[1745852422728,26.03827469,147.34,147.28,10.8953]
[1745852422930,6.7868,147.28,147.26,25.78]
[1745852423133,6.7868,147.28,147.25,6.7878]
[1745852423334,26.03827469,147.31,147.23,27.7132]
[1745852423531,6.7864,147.29,147.23,27.7132]
[1745852423728,26.03827469,147.31,147.23,27.7132]
[1745852423930,25.78,147.32,147.23,27.7132]
[1745852424131,25.78,147.32,147.28,6.7864]
[1745852424428,25.78,147.32,147.24,1.9761]
[1745852424623,6.7858,147.3,147.27,6.7869]
[1745852425638,25.78,147.32,147.28,6.7866]
[1745852425939,25.78,147.32,147.24,1.9761]
[1745852426129,6.7858,147.3,147.27,6.7869]
[1745852427433,25.78,147.32,147.24,1.9761]
[1745852427634,25.78,147.32,147.25,2.0858]
[1745852427929,6.7851,147.32,147.29,6.7858]
[1745852428135,6.7851,147.32,147.25,2.0858]
[1745852428336,51.83827469,147.35,147.25,28.12407469]
[1745852428536,6.7842,147.34,147.25,28.12407469]
[1745852428735,365.0,147.37,147.25,28.12407469]
[1745852429036,6.7833,147.36,147.33,6.7841]
[1745852429235,6.7833,147.36,147.3,25.8]
[1745852429437,6.7833,147.36,147.31,4.002]
[1745852429732,6.7833,147.36,147.32,6.7845]
[1745852430238,6.7833,147.36,147.33,6.7843]
[1745852431036,25.8,147.38,147.31,4.002]
[1745852431037,6.7835,147.35,147.32,6.7846]
[1745852431438,26.03827469,147.36,147.2,13.5805]
[1745852431735,26.03827469,147.36,147.25,2.1134]
[1745852431936,26.03827469,147.36,147.26,25.8]
[1745852432435,25.8,147.38,147.27,26.03827469]
[1745852432639,6.7844,147.33,147.3,6.7855]
[1745852432834,25.8,147.38,147.3,25.8]
[1745852433040,25.8,147.38,147.31,4.2052]
[1745852433242,6.7828,147.37,147.33,6.784]
[1745852433442,25.8,147.38,147.33,6.784]
[1745852433844,25.8,147.38,147.31,4.2052]
[1745852434237,6.7834,147.36,147.31,4.2052]
[1745852434444,25.8,147.38,147.31,4.2052]
[1745852434843,416.83827469,147.41,147.31,4.2052]
[1745852435146,51.83827469,147.44,147.33,26.03827469]
[1745852435334,51.83827469,147.44,147.34,27.85]
[1745852436143,26.03827469,147.4,147.34,27.85]
[1745852436344,26.03827469,147.43,147.34,27.85]
[1745852436740,25.8,147.44,147.34,27.85]
[1745852437544,6.7803,147.42,147.34,27.85]
[1745852437738,25.8,147.44,147.34,27.85]
[1745852437940,26.03827469,147.43,147.34,27.85]
[1745852438139,26.03827469,147.43,147.36,6.7827]
[1745852438345,26.03827469,147.43,147.34,27.85]
[1745852438540,6.7816,147.4,147.36,6.7826]
[1745852438741,6.7816,147.4,147.34,27.85]
[1745852439145,6.7816,147.4,147.37,6.7823]
[1745852439347,6.7816,147.4,147.34,27.85]
[1745852439645,6.7816,147.39,147.36,6.7828]
[1745852439846,26.03827469,147.43,147.34,27.85]
[1745852440145,6.7826,147.37,147.34,2.07]
[1745852440646,51.81827469,147.4,147.33,25.78]
[1745852441039,51.81827469,147.4,147.35,6.7834]
[1745852441244,26.03827469,147.43,147.33,25.78]
[1745852441443,6.781,147.41,147.38,6.782]
[1745852441647,26.03827469,147.43,147.38,6.782]
[1745852442048,6.7811,147.41,147.38,6.782]
[1745852442343,6.7811,147.41,147.39,6.7816]
[1745852442553,32.81837469,147.43,147.33,25.78]
[1745852442850,25.78,147.44,147.35,26.03827469]
[1745852443051,25.78,147.44,147.36,2.0287]
[1745852443346,25.78,147.44,147.37,25.78]
[1745852443552,25.78,147.44,147.37,29.9472]
[1745852443751,6.7797,147.44,147.37,29.9472]
[1745852443946,390.78,147.47,147.4,6.7809]
[1745852444250,390.78,147.47,147.37,29.9472]
[1745852444439,390.78,147.47,147.41,6.7805]
[1745852444645,390.78,147.47,147.37,29.9472]
[1745852444843,26.03827469,147.46,147.37,29.9472]
[1745852445950,6.781,147.41,147.39,6.7816]
[1745852446757,6.781,147.41,147.37,29.9472]
[1745852446758,6.7812,147.4,147.38,6.782]
[1745852446950,51.79827469,147.43,147.36,2.0287]
[1745852447354,6.7819,147.39,147.36,8.8113]
[1745852447952,6.7814,147.4,147.37,6.7823]
[1745852448152,51.79827469,147.43,147.37,6.7823]
[1745852448347,51.79827469,147.43,147.36,2.0287]
[1745852448756,51.79827469,147.43,147.34,25.76]
[1745852448956,26.03827469,147.4,147.34,25.76]
[1745852449258,6.7823,147.38,147.34,25.76]
[1745852449858,6.7823,147.38,147.35,6.7834]
[1745852450156,51.79827469,147.43,147.34,25.76]
[1745852450356,51.79827469,147.43,147.37,6.7823]
[1745852450550,6.7817,147.39,147.37,6.7823]
[1745852450747,51.79827469,147.43,147.37,6.7823]
[1745852451051,6.7817,147.39,147.37,6.7823]
[1745852451357,6.7817,147.39,147.36,6.7827]
[1745852452460,51.79827469,147.43,147.35,6.7832]
[1745852452759,26.03827469,147.37,147.3,2.0475]
[1745852452955,6.7835,147.35,147.3,2.0475]
[1745852453156,26.03827469,147.37,147.3,2.0475]
[1745852453457,6.7853,147.31,147.3,2.0475]
[1745852453659,26.03827469,147.37,147.29,32.5459]
[1745852453958,6.7832,147.36,147.29,25.76]
[1745852454149,6.7832,147.36,147.31,6.785]
[1745852454353,26.03827469,147.37,147.29,25.76]
[1745852454757,26.03827469,147.37,147.3,6.7855]
[1745852454957,26.03827469,147.37,147.29,25.76]
[1745852455457,26.03827469,147.37,147.3,6.7857]
[1745852455655,6.7842,147.34,147.3,6.7857]
[1745852455855,6.7842,147.34,147.31,6.7852]
[1745852456659,51.79827469,147.34,147.27,2.0221]
[1745852457161,32.5443,147.34,147.31,6.7851]
[1745852457958,6.7845,147.33,147.3,6.7855]
[1745852458160,51.79827469,147.34,147.27,2.0221]
[1745852458459,6.786,147.3,147.27,2.0221]
[1745852458655,51.79827469,147.34,147.27,2.0221]
[1745852458961,6.7858,147.31,147.28,6.7867]
[1745852459155,51.79827469,147.34,147.27,2.0221]
[1745852459360,6.7865,147.29,147.26,6.7874]
[1745852459561,51.79827469,147.34,147.25,29.9088]
[1745852459864,26.03827469,147.31,147.25,2.0761]
[1745852460063,25.78,147.3,147.25,2.0761]
[1745852460561,6.7871,147.28,147.25,6.7877]
[1745852460760,6.7871,147.28,147.22,29.8202]
[1745852461061,25.78,147.3,147.22,29.8202]
[1745852461562,32.566,147.3,147.27,6.7869]
[1745852461761,6.786,147.3,147.27,6.7869]
[1745852461961,25.78,147.33,147.22,29.8202]
[1745852462163,6.785,147.32,147.29,6.7859]
[1745852462362,25.78,147.33,147.22,29.8202]
[1745852462658,25.78,147.33,147.28,6.7863]
[1745852463059,25.78,147.33,147.22,43.3991]
[1745852463258,365.0,147.35,147.31,6.7851]
[1745852463564,25.78,147.36,147.31,6.7851]
[1745852463764,6.7845,147.33,147.3,6.7855]
[1745852464561,25.78,147.36,147.3,6.7855]
[1745852464866,25.78,147.36,147.27,51.81827469]
[1745852465064,25.78,147.39,147.3,26.03827469]
[1745852465365,25.78,147.39,147.35,6.7832]
[1745852465567,6.7823,147.38,147.35,6.7832]
[1745852465765,6.7823,147.38,147.31,27.8316]
[1745852465963,32.5619,147.39,147.36,6.7829]
[1745852466166,25.78,147.39,147.36,6.7829]
[1745852466467,25.78,147.39,147.35,6.7833]
[1745852466667,6.7821,147.38,147.35,6.7833]
[1745852468068,25.78,147.39,147.31,27.8316]
[1745852468463,6.7842,147.34,147.31,34.6166]
[1745852468671,25.78,147.39,147.31,27.8316]
[1745852469266,6.7835,147.35,147.31,27.8316]
[1745852469670,51.81827469,147.39,147.32,6.7846]
[1745852470267,6.7837,147.35,147.33,6.7844]
[1745852470569,51.81827469,147.39,147.31,2.0516]
[1745852470763,6.7838,147.35,147.32,6.7846]
[1745852470964,51.81827469,147.39,147.31,2.0516]
[1745852471267,25.78,147.39,147.36,6.7827]
[1745852472068,6.7823,147.38,147.35,6.7832]
[1745852472271,25.78,147.39,147.33,25.76]
[1745852472762,6.7828,147.37,147.33,25.76]
[1745852473172,6.7823,147.38,147.35,6.7832]
[1745852473971,6.7823,147.38,147.33,25.76]
[1745852474172,6.7823,147.38,147.34,1.9478]
[1745852474568,6.7823,147.38,147.35,6.7832]
[1745852474871,6.7826,147.37,147.35,6.7832]
[1745852475071,6.7826,147.37,147.34,1.9478]
[1745852475072,6.7826,147.37,147.34,8.7315]
[1745852475274,25.76,147.38,147.31,2.0516]
[1745852475576,25.76,147.41,147.31,2.0516]
[1745852476063,25.76,147.41,147.36,6.7827]
[1745852476570,6.7819,147.39,147.34,25.76]
[1745852477171,6.7819,147.39,147.36,6.7827]
[1745852477367,6.7821,147.38,147.34,25.76]
[1745852477574,25.76,147.41,147.34,25.76]
[1745852477770,25.76,147.41,147.36,6.7829]
[1745852477971,6.7823,147.38,147.34,25.76]
[1745852478175,6.7823,147.38,147.35,6.783]
[1745852478473,6.7828,147.37,147.34,25.76]
[1745852478672,6.7828,147.37,147.35,6.7831]
[1745852478875,25.76,147.41,147.35,6.7831]
[1745852479072,6.7823,147.38,147.34,25.76]
[1745852479374,25.76,147.41,147.34,25.76]
[1745852479572,6.7818,147.39,147.34,25.76]
[1745852479763,6.7818,147.39,147.36,6.7826]
[1745852479967,25.76,147.41,147.34,25.76]
[1745852480165,6.7814,147.4,147.34,25.76]
[1745852480363,365.0,147.43,147.35,3.9386]
[1745852480771,6.781,147.41,147.35,3.9386]
[1745852480972,6.781,147.41,147.38,6.7818]
[1745852481668,6.781,147.41,147.39,6.7815]
[1745852481874,6.7812,147.4,147.35,3.9386]
[1745852482173,6.7812,147.4,147.37,6.7821]
[1745852482377,6.7812,147.4,147.35,3.9386]
[1745852483470,6.7812,147.4,147.38,6.782]
[1745852483670,6.7812,147.4,147.35,3.9386]
[1745852483872,365.0,147.43,147.35,3.9386]
[1745852484374,6.7814,147.4,147.37,6.7821]
[1745852484672,6.7814,147.4,147.35,3.9386]
[1745852484876,6.7814,147.4,147.37,6.7821]
[1745852485274,6.7817,147.39,147.37,6.7821]
[1745852486779,6.7823,147.38,147.35,3.9386]
[1745852487877,6.7825,147.37,147.35,3.9386]
[1745852488175,51.79827469,147.4,147.31,2.0516]
[1745852488370,25.76,147.39,147.31,2.0516]
[1745852488572,6.7839,147.34,147.32,6.7845]
[1745852489279,25.76,147.39,147.3,25.76]
[1745852489280,26.03827469,147.37,147.3,25.76]
[1745852489683,26.03827469,147.37,147.27,25.76]
[1745852489982,6.7846,147.33,147.27,25.76]
[1745852490282,26.03827469,147.37,147.3,6.7854]
[1745852490785,6.7851,147.32,147.29,6.7858]
[1745852491283,6.7851,147.32,147.3,6.7855]
[1745852492777,6.7851,147.32,147.29,6.7859]
[1745852492980,6.7846,147.33,147.27,25.76]
[1745852493182,6.7846,147.33,147.3,6.7855]
[1745852493886,6.7849,147.32,147.3,6.7855]
[1745852494875,26.03827469,147.34,147.26,2.109]
[1745852495380,6.785,147.32,147.29,6.7859]
[1745852495579,25.76,147.35,147.26,2.109]
[1745852495781,6.7846,147.33,147.3,6.7855]
[1745852495980,25.76,147.35,147.28,25.76]
[1745852496178,25.76,147.37,147.28,25.76]
[1745852496481,6.7836,147.35,147.32,6.7845]
[1745852498585,6.7836,147.35,147.33,6.7843]
[1745852498789,6.7836,147.35,147.28,25.76]
[1745852499087,6.7836,147.35,147.32,6.7845]
[1745852499289,6.7836,147.35,147.28,25.76]
[1745852499491,6.7832,147.36,147.28,25.76]
[1745852500197,25.76,147.4,147.32,26.03827469]
[1745852500388,25.76,147.42,147.33,31.9592]
[1745852500684,6.781,147.41,147.33,31.9592]
[1745852500894,25.76,147.45,147.35,26.03827469]
[1745852501189,6.7795,147.44,147.35,26.03827469]
[1745852501392,6.7795,147.44,147.41,6.7804]
[1745852501897,25.76,147.48,147.39,25.76]
[1745852502187,25.76,147.48,147.4,4.0259]
[1745852502387,25.76,147.51,147.41,26.03827469]
[1745852503290,6.7772,147.49,147.41,26.03827469]
[1745852503488,25.76,147.51,147.41,26.03827469]
[1745852503687,26.03827469,147.5,147.4,6.0109]
[1745852503985,26.03827469,147.5,147.4,31.7709]
[1745852504382,6.7787,147.46,147.4,31.7709]
[1745852504583,26.03827469,147.5,147.4,31.7709]
[1745852505190,6.7787,147.46,147.4,31.7709]
[1745852505491,26.03827469,147.54,147.4,57.80917469]
[1745852505895,6.7772,147.49,147.4,57.80917469]
[1745852506094,25.74,147.52,147.4,57.80917469]
[1745852506389,6.7776,147.48,147.4,57.80917469]
[1745852506594,26.03827469,147.51,147.4,57.80917469]
[1745852506895,6.7795,147.44,147.41,6.7806]
[1745852507092,51.77827469,147.48,147.4,31.7709]
[1745852507494,51.77827469,147.48,147.4,29.7859]
[1745852508294,51.77827469,147.48,147.4,36.567]
[1745852508899,51.77827469,147.48,147.4,29.7859]
[1745852509394,6.7786,147.46,147.42,6.7802]
[1745852509600,51.77827469,147.48,147.4,29.7859]
[1745852509893,25.74,147.48,147.43,6.7795]
[1745852510393,25.74,147.48,147.4,29.7859]
[1745852510592,32.5177,147.48,147.41,2.0195]
[1745852510787,6.7777,147.48,147.41,2.0195]
[1745852510985,51.77827469,147.51,147.41,2.0195]
[1745852511189,6.7773,147.49,147.45,6.7785]
[1745852511385,51.77827469,147.51,147.45,6.7785]
[1745852511597,6.7773,147.49,147.45,6.7785]
[1745852511791,51.77827469,147.51,147.45,6.7785]
[1745852512297,51.77827469,147.51,147.41,2.0195]
[1745852512597,51.77827469,147.51,147.46,6.778]
[1745852512799,6.7769,147.5,147.46,6.778]
[1745852513101,51.77827469,147.54,147.47,6.7775]
[1745852513598,6.7765,147.51,147.47,6.7775]
[1745852513896,51.77827469,147.54,147.47,6.7775]
[1745852514197,6.7768,147.5,147.47,6.7775]
[1745852515399,6.7768,147.5,147.44,25.74]
[1745852515894,6.7768,147.5,147.47,6.7777]
[1745852516197,6.7768,147.5,147.44,25.74]
[1745852516397,51.77827469,147.54,147.44,25.74]
[1745852516798,6.7763,147.51,147.44,25.74]
[1745852517096,51.77827469,147.57,147.44,25.74]
[1745852517487,51.77827469,147.57,147.5,6.7765]
[1745852517688,51.77827469,147.57,147.48,25.74]
[1745852517890,6.7757,147.52,147.48,25.74]
[1745852518088,6.7757,147.52,147.5,6.7765]
[1745852518298,51.77827469,147.57,147.5,6.7765]
[1745852518489,6.7753,147.53,147.5,6.7765]